bitfinex-derivatives/quotes_BTCF0:USTF0_20241013
["timestamp","ask_amount","ask_price","bid_price","bid_amount"]
[1728827382400,0.23844481,62761.0,62760.0,0.001]
[1728827382705,0.12844481,62761.0,62760.0,0.001]
[1728827384620,0.195679,62761.0,62760.0,0.001]
[1728827384801,0.085679,62761.0,62760.0,0.001]
[1728827385900,0.085679,62761.0,62760.0,0.04874271]
[1728827386804,0.085679,62761.0,62760.0,0.001]
[1728827388104,0.195679,62761.0,62760.0,0.001]
[1728827388701,0.556479,62761.0,62760.0,0.001]
[1728827389321,0.556479,62761.0,62760.0,0.04874271]
[1728827390209,0.446479,62761.0,62760.0,0.04874271]
[1728827391417,0.556479,62761.0,62760.0,0.04874271]
[1728827394018,0.556479,62761.0,62760.0,0.001]
[1728827400929,0.64857417,62761.0,62760.0,0.001]
[1728827401115,1.64689517,62761.0,62755.0,0.0111]
[1728827401318,0.299685,62756.0,62755.0,0.0111]
[1728827401522,0.079697,62747.0,62746.0,0.0037]
[1728827401725,0.079699,62745.0,62740.0,0.079705]
[1728827402020,0.12212524,62745.0,62740.0,0.079705]
[1728827402529,0.12212524,62745.0,62738.0,0.22837691]
[1728827402530,0.12212524,62745.0,62741.0,0.079704]
[1728827402826,0.079699,62745.0,62741.0,0.079704]
[1728827403320,0.080699,62745.0,62744.0,0.01339044]
[1728827403715,0.10948962,62745.0,62744.0,0.01339044]
[1728827404723,0.10948962,62745.0,62744.0,0.02239044]
[1728827405732,0.080699,62745.0,62744.0,0.02239044]
[1728827406120,0.190699,62745.0,62744.0,0.02239044]
[1728827407023,0.551499,62745.0,62744.0,0.02239044]
[1728827407425,0.551499,62745.0,62744.0,0.10209044]
[1728827407621,0.4718,62745.0,62744.0,0.10209044]
[1728827409233,0.4718,62745.0,62744.0,0.23223083]
[1728827411317,0.551499,62745.0,62744.0,0.2037366]
[1728827416034,0.551499,62745.0,62744.0,0.10209044]
[1728827418832,0.551499,62745.0,62744.0,0.0997]
[1728827421740,0.190699,62745.0,62744.0,0.0997]
[1728827424126,0.190699,62745.0,62744.0,0.20136143]
[1728827425328,0.190699,62745.0,62744.0,0.0997]
[1728827425533,0.190699,62745.0,62744.0,0.20138704]
[1728827430236,0.001,62745.0,62744.0,0.29662019]
[1728827430553,0.001,62745.0,62744.0,1.41373103]
[1728827430844,0.001,62745.0,62744.0,1.77453103]
[1728827431047,0.3608,62754.0,62749.0,0.079694]
[1728827431239,0.3608,62754.0,62753.0,0.079689]
[1728827431439,0.00239078,62758.0,62757.0,0.079684]
[1728827431640,0.02845149,62760.0,62757.0,0.38681335]
[1728827431836,0.02845149,62760.0,62759.0,0.079681]
[1728827432037,0.3608,62761.0,62759.0,0.33718404]
[1728827432233,0.3608,62761.0,62760.0,0.18116928]
[1728827432831,0.3608,62761.0,62760.0,0.18065496]
[1728827433534,0.3628,62761.0,62760.0,1.25965496]
[1728827433736,0.3628,62761.0,62760.0,0.65965496]
[1728827433936,0.3678,62761.0,62760.0,0.65965496]
[1728827434131,0.3678,62761.0,62760.0,0.66463837]
[1728827434349,0.3678,62761.0,62760.0,0.65965496]
[1728827434943,0.3678,62761.0,62760.0,0.76965496]
[1728827435142,0.007,62761.0,62760.0,0.84910867]
[1728827435339,0.007,62761.0,62760.0,0.77463837]
[1728827435943,0.007,62761.0,62760.0,0.29663837]
[1728827436643,0.007,62761.0,62760.0,0.32549004]
[1728827437155,0.007,62761.0,62760.0,0.76568325]
[1728827438246,0.007,62761.0,62760.0,0.66470829]
[1728827438843,0.007,62761.0,62760.0,0.664708]
[1728827439254,0.007,62761.0,62760.0,0.58531479]
[1728827440450,0.007,62761.0,62760.0,0.22451479]
[1728827442558,0.007,62761.0,62760.0,0.21953167]
[1728827442860,0.007,62761.0,62760.0,0.22451478]
[1728827443453,0.117,62761.0,62760.0,0.11451478]
[1728827446954,0.007,62761.0,62760.0,0.11451478]
[1728827447168,0.007,62761.0,62760.0,0.28802611]
[1728827450956,0.007,62761.0,62760.0,0.22451478]
[1728827451450,0.007,62761.0,62760.0,0.28799087]
[1728827451955,0.007,62761.0,62760.0,0.22451478]
[1728827457768,0.007,62761.0,62760.0,0.2245149]
[1728827460775,0.007,62761.0,62760.0,0.21953167]
[1728827460970,0.007,62761.0,62760.0,0.2245149]
[1728827461166,0.117,62761.0,62760.0,0.31093802]
[1728827461470,0.117,62761.0,62760.0,0.21049179]
[1728827464478,0.117,62761.0,62760.0,0.21062867]
[1728827465172,0.196687,62761.0,62760.0,0.21062867]
[1728827469176,0.196687,62761.0,62760.0,0.10953167]
[1728827472281,0.557487,62761.0,62760.0,0.08068]
[1728827476280,0.557487,62761.0,62760.0,0.27736309]
[1728827479689,0.557487,62761.0,62760.0,0.18190009]
[1728827480887,0.557487,62761.0,62760.0,0.27751564]
[1728827481088,0.557487,62761.0,62760.0,0.19783564]
[1728827481283,0.667487,62761.0,62760.0,0.001]
[1728827481589,0.557487,62761.0,62760.0,0.06475384]
[1728827481782,0.667487,62761.0,62760.0,0.06475384]
[1728827481985,0.557487,62761.0,62760.0,0.001]
[1728827483292,0.557487,62761.0,62760.0,0.04878298]
[1728827487286,0.557487,62761.0,62760.0,0.001]
[1728827491692,0.59993285,62761.0,62760.0,0.001]
[1728827493795,0.59993036,62761.0,62760.0,0.001]
[1728827498796,0.557487,62761.0,62760.0,0.001]
[1728827501095,1.145487,62761.0,62760.0,0.001]
[1728827501290,0.079691,62758.0,62757.0,0.04775144]
[1728827501591,0.079697,62753.0,62752.0,0.0111]
[1728827501796,0.079697,62753.0,62749.0,0.0111]
[1728827501797,0.079701,62750.0,62749.0,0.0111]
[1728827501993,0.079703,62748.0,62747.0,0.00238992]
[1728827502199,0.440503,62748.0,62747.0,0.00238992]
[1728827503098,0.440503,62748.0,62747.0,0.08209492]
[1728827504900,0.079703,62748.0,62747.0,0.08809492]
[1728827505104,0.440503,62748.0,62747.0,0.08809492]
[1728827505307,0.441503,62748.0,62747.0,0.09609492]
[1728827513917,0.551503,62748.0,62747.0,0.19654259]
[1728827514122,0.551503,62748.0,62747.0,0.2761808]
[1728827514620,0.3618,62748.0,62747.0,0.27618183]
[1728827514919,0.3618,62748.0,62747.0,0.30654259]
[1728827515215,0.3618,62748.0,62747.0,0.19654259]
[1728827516813,0.3618,62748.0,62747.0,0.29215814]
[1728827521018,0.3618,62748.0,62747.0,0.29212824]
[1728827521720,0.3618,62748.0,62747.0,0.19651269]
[1728827522413,0.441503,62748.0,62747.0,0.19671221]
[1728827522615,0.441503,62748.0,62747.0,0.19662836]
[1728827522920,0.441503,62748.0,62747.0,0.09604411]
[1728827523105,0.441503,62748.0,62747.0,0.19667127]
[1728827523309,0.441503,62748.0,62747.0,0.09604411]
[1728827523713,0.441503,62748.0,62747.0,0.1966846]
[1728827525305,0.441503,62748.0,62747.0,0.29730371]
[1728827525508,0.4709317,62748.0,62747.0,0.19666282]
[1728827526714,0.4709317,62748.0,62747.0,0.09604411]
[1728827526911,0.4709317,62748.0,62747.0,0.01638992]
[1728827530415,0.4709317,62748.0,62742.0,0.0111]
[1728827530416,0.07971,62743.0,62742.0,0.0111]
[1728827530616,0.07971,62743.0,62735.0,0.0371]
[1728827530617,0.079716,62738.0,62737.0,0.0111]
[1728827530922,0.079716,62738.0,62736.0,0.079718]
[1728827530923,0.079717,62737.0,62736.0,0.079718]
[1728827531818,0.550516,62738.0,62734.0,0.0111]
[1728827532016,0.550516,62738.0,62733.0,0.079722]
[1728827532017,0.079721,62734.0,62733.0,0.079722]
[1728827532423,0.11,62735.0,62730.0,0.0111]
[1728827532626,0.550525,62731.0,62730.0,0.079725]
[1728827534016,0.189725,62731.0,62730.0,0.079725]
[1728827534220,0.190725,62731.0,62730.0,0.082725]
[1728827536524,0.191725,62731.0,62730.0,0.096725]
[1728827536932,0.191725,62731.0,62730.0,0.19771083]
[1728827537624,0.301725,62731.0,62730.0,0.11798583]
[1728827537926,0.301725,62731.0,62730.0,0.017]
[1728827538125,0.367225,62731.0,62730.0,0.017]
[1728827538526,0.400325,62731.0,62730.0,0.017]
[1728827539432,0.400325,62731.0,62727.0,0.0111]
[1728827539433,0.079729,62728.0,62727.0,0.0111]
[1728827539735,0.079732,62725.0,62724.0,0.0111]
[1728827540041,0.079736,62722.0,62720.0,0.0111]
[1728827540223,0.299736,62722.0,62719.0,0.15927703]
[1728827540428,0.299736,62722.0,62716.0,0.10653941]
[1728827540429,0.299736,62722.0,62717.0,0.07953703]
[1728827540631,0.299736,62722.0,62716.0,0.0111]
[1728827542033,0.300736,62722.0,62721.0,0.01239114]
[1728827543439,0.301736,62722.0,62721.0,0.01739114]
[1728827544030,0.300736,62722.0,62721.0,0.01239114]
[1728827544228,0.301736,62722.0,62721.0,0.01239114]
[1728827544523,0.301736,62722.0,62721.0,0.00639114]
[1728827547226,0.191736,62722.0,62721.0,0.00639114]
[1728827548229,0.301736,62722.0,62721.0,0.00639114]
[1728827551740,0.191736,62722.0,62721.0,0.00639114]
[1728827552238,0.301736,62722.0,62721.0,0.00639114]
[1728827553039,0.303736,62722.0,62721.0,0.00639114]
[1728827553632,0.303736,62722.0,62721.0,0.004]
[1728827554034,0.303736,62722.0,62716.0,0.0111]
[1728827554035,0.224,62722.0,62716.0,0.0111]
[1728827554235,0.660543,62717.0,62716.0,0.0111]
[1728827554435,0.079744,62716.0,62715.0,0.079745]
[1728827556040,0.080744,62716.0,62715.0,0.085745]
[1728827557044,0.080744,62716.0,62715.0,0.087745]
[1728827561043,0.190744,62716.0,62715.0,0.008]
[1728827562342,0.190744,62716.0,62715.0,0.006]
[1728827562547,0.189744,62716.0,62715.0,0.001]
[1728827562742,0.189744,62716.0,62715.0,0.006]
[1728827564842,0.189744,62716.0,62715.0,0.002]
[1728827565044,0.191744,62716.0,62715.0,0.001]
[1728827566842,0.191744,62716.0,62715.0,0.064678]
[1728827567260,0.191744,62716.0,62715.0,0.001]
[1728827568950,0.171744,62716.0,62715.0,0.001]
[1728827571259,0.893344,62716.0,62715.0,0.001]
[1728827571765,1.003344,62716.0,62715.0,0.001]
[1728827574763,0.893344,62716.0,62715.0,0.001]
[1728827576959,0.893344,62716.0,62715.0,0.0324]
[1728827578266,0.893344,62716.0,62715.0,0.11193703]
[1728827580957,0.893344,62716.0,62715.0,0.0324]
[1728827581976,0.893344,62716.0,62715.0,0.001]
[1728827582357,1.003344,62716.0,62715.0,0.001]
[1728827583167,0.079746,62714.0,62713.0,0.0637672]
[1728827583560,1.068844,62716.0,62712.0,0.0637672]
[1728827583561,0.079748,62713.0,62712.0,0.0637672]
[1728827583767,0.189748,62713.0,62712.0,0.0637672]
[1728827583971,0.079749,62712.0,62711.0,0.06377262]
[1728827584272,0.079757,62706.0,62705.0,0.0312]
[1728827584463,0.550557,62706.0,62705.0,0.0312]
[1728827585173,0.079758,62705.0,62704.0,0.079758]
[1728827585371,0.07976,62703.0,62702.0,0.0302]
[1728827585569,0.18976,62703.0,62702.0,0.0302]
[1728827585870,0.079762,62702.0,62701.0,0.00239234]
[1728827586269,0.079762,62702.0,62701.0,0.10470137]
[1728827586672,0.079762,62702.0,62701.0,0.18442511]
[1728827586866,0.079762,62702.0,62701.0,0.18203277]
[1728827587066,0.079763,62701.0,62700.0,0.07972374]
[1728827587277,0.189763,62701.0,62700.0,0.1820865]
[1728827587667,0.189763,62701.0,62699.0,0.079765]
[1728827587668,0.11,62701.0,62699.0,0.07972374]
[1728827587867,0.11,62701.0,62697.0,0.079767]
[1728827587868,0.079766,62699.0,62698.0,0.07972374]
[1728827588178,0.079766,62699.0,62697.0,0.07972374]
[1728827588179,0.079767,62698.0,62697.0,0.07972374]
[1728827588559,0.079767,62698.0,62697.0,0.15949174]
[1728827589173,0.079767,62698.0,62697.0,0.18217301]
[1728827589469,0.079767,62698.0,62697.0,0.27778152]
[1728827589669,0.079767,62698.0,62697.0,0.27776306]
[1728827590070,0.079767,62698.0,62697.0,0.18215455]
[1728827590468,0.080767,62698.0,62697.0,0.18715455]
[1728827591064,0.081767,62698.0,62697.0,0.19315455]
[1728827591368,0.11100909,62698.0,62697.0,0.19315455]
[1728827592576,0.11100909,62698.0,62697.0,0.19302541]
[1728827592876,0.11100909,62698.0,62697.0,0.09063886]
[1728827593071,0.11100909,62698.0,62697.0,0.1930968]
[1728827593278,0.11100909,62698.0,62697.0,0.011]
[1728827593869,0.22100909,62698.0,62697.0,0.011]
[1728827594281,0.69948909,62698.0,62697.0,0.07469902]
[1728827594467,1.29948909,62698.0,62697.0,0.011]
[1728827594781,1.18948909,62698.0,62697.0,0.011]
[1728827595672,0.11100909,62698.0,62697.0,0.011]
[1728827596275,0.22100909,62698.0,62697.0,0.011]
[1728827596575,0.22100909,62698.0,62697.0,0.090768]
[1728827603772,0.22100909,62698.0,62697.0,0.011]
[1728827609373,0.94260909,62698.0,62697.0,0.011]
[1728827610275,0.22100909,62698.0,62697.0,0.011]
[1728827610474,0.94260909,62698.0,62697.0,0.011]
[1728827610782,1.05260909,62698.0,62693.0,0.07479902]
[1728827610984,1.05260909,62698.0,62692.0,0.0037]
[1728827610985,0.079773,62693.0,62692.0,0.06369902]
[1728827611283,0.079773,62693.0,62688.0,0.083479]
[1728827611284,0.079778,62689.0,62688.0,0.079779]
[1728827611589,0.440578,62689.0,62688.0,0.079779]
[1728827612481,0.440578,62689.0,62688.0,0.14347802]
[1728827613382,0.4696817,62689.0,62688.0,0.079779]
[1728827614277,0.4706817,62689.0,62688.0,0.079779]
[1728827614478,0.442578,62689.0,62688.0,0.079779]
[1728827616578,0.4717433,62689.0,62688.0,0.079779]
[1728827616778,0.442578,62689.0,62688.0,0.079779]
[1728827618687,0.079781,62687.0,62686.0,0.07963886]
[1728827618999,0.189781,62687.0,62686.0,0.18186452]
[1728827619181,0.189781,62687.0,62686.0,0.079782]
[1728827619182,0.11,62687.0,62686.0,0.079782]
[1728827619987,0.111,62687.0,62686.0,0.080782]
[1728827620286,0.112,62687.0,62686.0,0.080782]
[1728827624602,0.191781,62687.0,62686.0,0.080782]
[1728827625895,0.112,62687.0,62686.0,0.080782]
[1728827626395,0.112,62687.0,62686.0,0.30495703]
[1728827631993,0.112,62687.0,62686.0,0.080782]
[1728827634502,0.191781,62687.0,62686.0,0.080782]
[1728827635208,0.081781,62687.0,62686.0,0.080782]
[1728827635394,0.191781,62687.0,62686.0,0.080782]
[1728827636297,0.112,62687.0,62686.0,0.080782]
[1728827636506,0.112,62687.0,62686.0,0.14463394]
[1728827640808,0.4728,62687.0,62686.0,0.14463394]
[1728827640999,0.4728,62687.0,62686.0,0.30527875]
[1728827641508,0.4728,62687.0,62686.0,0.30527667]
[1728827642800,0.4728,62687.0,62686.0,0.31524544]
[1728827643001,0.4728,62687.0,62686.0,0.30527667]
[1728827644501,0.3628,62687.0,62686.0,0.30527667]
[1728827644699,0.4728,62687.0,62686.0,0.30527667]
[1728827645398,0.4728,62687.0,62686.0,0.31526805]
[1728827645399,0.3628,62687.0,62686.0,0.31526805]
[1728827645607,0.4728,62687.0,62686.0,0.31526805]
[1728827646301,0.002,62687.0,62686.0,0.42526805]
[1728827646607,0.002,62687.0,62686.0,0.43824017]
[1728827646812,0.002,62687.0,62686.0,0.45819689]
[1728827647105,0.440575,62692.0,62691.0,0.079776]
[1728827647106,0.3608,62692.0,62691.0,0.079776]
[1728827647412,0.3608,62692.0,62691.0,0.41427067]
[1728827648408,0.3618,62692.0,62691.0,0.41527067]
[1728827648710,0.3628,62692.0,62691.0,0.41527067]
[1728827649015,0.3628,62692.0,62691.0,0.190776]
[1728827649510,0.3628,62692.0,62691.0,0.25458637]
[1728827650899,0.3628,62692.0,62691.0,0.28368558]
[1728827651096,0.3628,62692.0,62691.0,0.21987521]
[1728827653610,0.3628,62692.0,62691.0,0.12284648]
[1728827654111,0.3628,62692.0,62691.0,0.60136648]
[1728827654296,0.3628,62692.0,62691.0,0.61139462]
[1728827656112,0.3628,62692.0,62691.0,0.83499615]
[1728827656308,0.3628,62692.0,62691.0,0.82496801]
[1728827657815,0.0037,62699.0,62691.0,1.42496801]
[1728827658127,0.0037,62702.0,62701.0,0.079763]
[1728827658303,0.032,62704.0,62703.0,0.07976]
[1728827659502,0.032,62704.0,62703.0,0.1434751]
[1728827660208,0.142,62704.0,62702.0,0.0637151]
[1728827660614,0.07976,62703.0,62702.0,0.0637151]
[1728827661119,0.07976,62703.0,62700.0,0.04778854]
[1728827661120,0.079762,62702.0,62700.0,0.04778854]
[1728827661419,0.079768,62697.0,62696.0,0.0111]
[1728827661621,0.079772,62694.0,62693.0,0.0111]
[1728827661820,0.079772,62694.0,62692.0,0.0637151]
[1728827661821,0.079773,62693.0,62692.0,0.0637151]
[1728827662018,0.189773,62693.0,62692.0,0.0637151]
[1728827662215,0.079774,62692.0,62691.0,0.0637151]
[1728827662516,0.221474,62692.0,62691.0,0.0637151]
[1728827664118,0.079776,62691.0,62690.0,0.1434921]
[1728827665620,0.080776,62691.0,62690.0,0.1454921]
[1728827666220,0.080776,62691.0,62690.0,0.081777]
[1728827666410,0.080776,62691.0,62690.0,0.1454921]
[1728827666615,0.002,62691.0,62690.0,0.1454921]
[1728827666810,0.002,62691.0,62690.0,0.081777]
[1728827667320,0.081776,62691.0,62690.0,0.081777]
[1728827673716,0.081776,62691.0,62690.0,0.14550632]
[1728827675616,0.081776,62691.0,62690.0,0.081777]
[1728827675813,0.081776,62691.0,62690.0,0.14550632]
[1728827677621,0.081776,62691.0,62690.0,0.081777]
[1728827679419,0.191776,62691.0,62690.0,0.081777]
[1728827679620,0.191776,62691.0,62690.0,0.1836332]
[1728827680616,0.191776,62691.0,62690.0,0.18362841]
[1728827681425,0.552576,62691.0,62690.0,0.18362841]
[1728827683922,0.191776,62691.0,62690.0,0.18362841]
[1728827684228,0.552576,62691.0,62690.0,0.18362841]
[1728827686027,0.191776,62691.0,62690.0,0.18362841]
[1728827686231,0.552576,62691.0,62690.0,0.18362841]
[1728827686620,0.552576,62691.0,62690.0,0.081777]
[1728827687820,0.662576,62691.0,62690.0,0.081777]
[1728827688018,0.662576,62691.0,62690.0,0.002]
[1728827689434,0.07978,62688.0,62687.0,0.06374214]
[1728827689630,0.18978,62688.0,62686.0,0.079781]
[1728827690335,0.079781,62687.0,62686.0,0.079781]
[1728827690724,0.079781,62687.0,62686.0,0.26167024]
[1728827690925,0.079782,62686.0,62685.0,0.15946067]
[1728827691236,0.189782,62686.0,62685.0,0.079783]
[1728827692937,0.190782,62686.0,62685.0,0.081783]
[1728827693930,0.191782,62686.0,62685.0,0.082783]
[1728827694828,0.191782,62686.0,62685.0,0.18501072]
[1728827695234,0.191782,62686.0,62685.0,0.18506418]
[1728827695734,0.191782,62686.0,62685.0,0.28077995]
[1728827696734,0.191782,62686.0,62685.0,0.18506418]
[1728827699241,0.913382,62686.0,62685.0,0.18506418]
[1728827699936,0.913382,62686.0,62685.0,0.082783]
[1728827700143,0.913382,62686.0,62685.0,0.18516291]
[1728827701740,0.913382,62686.0,62685.0,0.082783]
[1728827705832,0.913382,62686.0,62685.0,0.003]
[1728827709639,0.913382,62686.0,62685.0,0.10539058]
[1728827711936,0.913382,62686.0,62685.0,0.1851196]
[1728827712746,0.913382,62686.0,62685.0,0.18518519]
[1728827712946,0.913382,62686.0,62685.0,0.10545617]
[1728827713537,0.913382,62686.0,62685.0,0.1851863]
[1728827713750,0.913382,62686.0,62685.0,0.10545617]
[1728827716648,0.913382,62686.0,62685.0,0.003]
[1728827724741,0.913382,62686.0,62685.0,0.10556278]
[1728827731648,0.913382,62686.0,62685.0,0.1055733]
[1728827732856,0.913382,62686.0,62685.0,0.10557074]
[1728827737257,0.912382,62686.0,62685.0,0.10357074]
[1728827737447,0.912382,62686.0,62685.0,0.10557074]
[1728827737653,0.802382,62686.0,62685.0,0.10557074]
[1728827737958,0.912382,62686.0,62685.0,0.10557074]
[1728827738755,0.190782,62686.0,62685.0,0.10557074]
[1728827738948,0.912382,62686.0,62685.0,0.10557074]
[1728827739751,0.912382,62686.0,62685.0,0.003]
[1728827740855,0.190782,62686.0,62685.0,0.003]
[1728827741152,0.912382,62686.0,62685.0,0.003]
[1728827746859,0.912382,62686.0,62685.0,0.10558941]
[1728827754473,0.190782,62686.0,62685.0,0.10558941]
[1728827754674,0.912382,62686.0,62685.0,0.10558941]
[1728827755285,0.912382,62686.0,62685.0,0.10564344]
[1728827757988,0.190782,62686.0,62685.0,0.10564344]
[1728827758172,0.912382,62686.0,62685.0,0.10564344]
[1728827759987,0.912382,62686.0,62685.0,0.1056419]
[1728827761882,0.912382,62686.0,62685.0,0.003]
[1728827763688,1.022382,62686.0,62685.0,0.003]
[1728827764085,0.912382,62686.0,62685.0,0.003]
[1728827765997,0.912382,62686.0,62675.0,0.0043]
[1728827765998,0.079794,62677.0,62675.0,0.0043]
[1728827766193,0.4708,62676.0,62667.0,0.112806]
[1728827766394,0.550999,62673.0,62667.0,0.110606]
[1728827767189,0.550999,62673.0,62668.0,0.079805]
[1728827768300,0.551999,62673.0,62668.0,0.079805]
[1728827768684,0.551999,62673.0,62667.0,0.0308]
[1728827768685,0.441999,62673.0,62667.0,0.0308]
[1728827768994,0.2624,62673.0,62672.0,0.08219321]
[1728827769193,0.2634,62673.0,62672.0,0.08319321]
[1728827769395,0.2634,62673.0,62672.0,1.19277321]
[1728827769593,0.0024,62673.0,62672.0,1.19277321]
[1728827769794,0.4732,62673.0,62672.0,0.11409321]
[1728827770001,0.4732,62673.0,62672.0,0.21503903]
[1728827770595,0.552999,62673.0,62672.0,0.21503903]
[1728827772500,0.552999,62673.0,62672.0,0.21520429]
[1728827772699,0.552999,62673.0,62672.0,0.18430429]
[1728827775105,0.552999,62673.0,62672.0,0.10450429]
[1728827775607,1.06188,62673.0,62662.0,0.095667]
[1728827775803,0.4712,62663.0,62659.0,0.096067]
[1728827776109,0.189815,62660.0,62659.0,0.080216]
[1728827776705,0.11,62660.0,62659.0,0.080216]
[1728827777794,0.111,62660.0,62659.0,0.081216]
[1728827779098,0.190815,62660.0,62659.0,0.081216]
[1728827779299,0.111,62660.0,62659.0,0.081216]
[1728827779802,0.112,62660.0,62659.0,0.081216]
[1728827782004,0.191815,62660.0,62659.0,0.081216]
[1728827784001,0.002,62660.0,62659.0,0.081216]
[1728827784206,0.112,62660.0,62659.0,0.081216]
[1728827790499,0.112,62660.0,62659.0,0.18182792]
[1728827791905,0.112,62660.0,62659.0,0.081216]
[1728827796417,0.112,62660.0,62659.0,0.16087663]
[1728827797209,0.112,62660.0,62659.0,0.2615864]
[1728827797605,0.112,62660.0,62659.0,0.16087663]
[1728827798115,0.112,62660.0,62659.0,0.081216]
[1728827798412,0.112,62660.0,62659.0,0.26158895]
[1728827799118,0.112,62660.0,62659.0,0.16087663]
[1728827799922,0.112,62660.0,62659.0,0.27765549]
[1728827800219,0.112,62660.0,62659.0,0.18198849]
[1728827801130,0.112,62660.0,62659.0,0.30208011]
[1728827804024,0.06408043,62660.0,62659.0,0.30208011]
[1728827804216,0.06408043,62660.0,62659.0,0.41360642]
[1728827805213,0.3612,62663.0,62662.0,0.079813]
[1728827805411,0.3612,62663.0,62662.0,0.18058549]
[1728827805616,0.3612,62663.0,62662.0,0.2998676]
[1728827806723,0.3622,62663.0,62662.0,0.3008676]
[1728827806919,0.3622,62663.0,62662.0,0.080813]
[1728827807422,0.3632,62663.0,62662.0,0.082813]
[1728827808324,0.3632,62663.0,62662.0,0.561573]
[1728827808634,0.3632,62663.0,62662.0,0.66191026]
[1728827808822,0.0024,62663.0,62662.0,0.66690146]
[1728827809229,0.0024,62663.0,62662.0,0.74668231]
[1728827809526,0.0024,62663.0,62662.0,0.26792231]
[1728827809924,0.0024,62663.0,62662.0,0.27590818]
[1728827810222,0.0024,62663.0,62662.0,0.17557092]
[1728827810521,0.0024,62663.0,62662.0,0.19683901]
[1728827810722,0.0024,62663.0,62662.0,0.11705816]
[1728827811627,0.0024,62663.0,62662.0,0.0878042]
[1728827812327,0.0024,62663.0,62662.0,0.082813]
[1728827812622,0.0024,62663.0,62662.0,0.08780423]
[1728827813722,0.0024,62663.0,62662.0,0.09079901]
[1728827813914,0.0024,62663.0,62662.0,0.08780425]
[1728827814313,0.0024,62663.0,62662.0,0.09579029]
[1728827814919,0.0024,62663.0,62662.0,0.19614848]
[1728827815225,0.0024,62663.0,62662.0,0.19614072]
[1728827815427,0.0024,62663.0,62662.0,0.18316343]
[1728827815630,0.0024,62663.0,62662.0,0.19614089]
[1728827816136,0.0024,62663.0,62662.0,0.18316343]
[1728827816321,0.0024,62663.0,62662.0,0.19614089]
[1728827817516,0.0024,62663.0,62662.0,0.31569629]
[1728827817925,0.0024,62663.0,62662.0,0.19614089]
[1728827818524,0.0024,62663.0,62662.0,0.31571951]
[1728827818726,0.0024,62663.0,62662.0,1.50447951]
[1728827818930,0.0024,62663.0,62662.0,1.53450618]
[1728827819232,0.0024,62663.0,62662.0,1.5145417]
[1728827819733,0.0024,62663.0,62662.0,1.56573658]
[1728827820422,0.0024,62663.0,62662.0,1.54577257]
[1728827820824,0.0024,62663.0,62662.0,1.65751775]
[1728827821320,0.0024,62663.0,62662.0,1.79615086]
[1728827821833,0.0111,62669.0,62668.0,0.079805]
[1728827822130,0.0047,62673.0,62668.0,0.079805]
[1728827822131,0.0004,62673.0,62672.0,0.0798]
[1728827822426,0.0004,62673.0,62672.0,0.40945992]
[1728827823127,0.0004,62673.0,62672.0,0.40905299]
[1728827823332,0.0004,62673.0,62672.0,0.28982592]
[1728827824526,0.0004,62673.0,62672.0,0.29082592]
[1728827825328,0.0004,62673.0,62672.0,0.38644685]
[1728827825529,0.0014,62673.0,62672.0,0.38944685]
[1728827826633,0.0014,62673.0,62672.0,0.41753289]
[1728827828637,0.0014,62673.0,62672.0,0.32191196]
[1728827830036,0.0014,62673.0,62672.0,0.22188604]
[1728827830624,0.0014,62673.0,62672.0,0.58268604]
[1728827831240,0.0014,62673.0,62672.0,0.59566171]
[1728827833734,0.0014,62673.0,62672.0,0.58268604]
[1728827833936,0.0014,62673.0,62672.0,0.59566085]
[1728827834935,0.0014,62673.0,62672.0,0.64346348]
[1728827835439,0.0014,62673.0,62672.0,0.64346389]
[1728827837035,0.0014,62673.0,62672.0,0.6959263]
[1728827837232,0.0014,62673.0,62672.0,0.79153385]
[1728827837941,0.0014,62673.0,62672.0,0.77855863]
[1728827838145,0.0014,62673.0,62672.0,0.79153378]
[1728827839841,0.0014,62673.0,62672.0,0.69592623]
[1728827840344,0.0014,62673.0,62672.0,0.33512615]
[1728827840644,0.0014,62673.0,62672.0,0.32215108]
[1728827840843,0.0014,62673.0,62672.0,0.3351262]
[1728827841847,0.0014,62673.0,62672.0,0.33511824]
[1728827842445,0.0014,62673.0,62672.0,0.43072579]
[1728827843941,0.0014,62673.0,62672.0,0.33511824]
[1728827844139,0.0014,62673.0,62672.0,0.43072579]
[1728827844340,0.0014,62673.0,62672.0,0.41775067]
[1728827844639,0.0014,62673.0,62672.0,0.43072559]
[1728827845544,0.0014,62673.0,62672.0,0.33511798]
[1728827845845,0.0014,62673.0,62672.0,0.43077573]
[1728827846048,0.0014,62673.0,62672.0,0.41780087]
[1728827846239,0.0014,62673.0,62672.0,0.43077591]
[1728827847250,0.0014,62673.0,62672.0,0.33511816]
[1728827849553,0.0014,62673.0,62672.0,0.33511825]
[1728827849744,0.0014,62673.0,62672.0,0.45476491]
[1728827850046,0.0014,62673.0,62672.0,0.33511825]
[1728827851553,0.0014,62673.0,62672.0,0.45492947]
[1728827852137,0.0014,62673.0,62672.0,0.23486117]
[1728827856943,0.0014,62673.0,62672.0,0.22188604]
[1728827857143,0.0014,62673.0,62672.0,0.23486092]
[1728827860947,0.0014,62673.0,62672.0,0.23486088]
[1728827864856,0.0014,62673.0,62672.0,0.24496795]
[1728827865554,0.0014,62673.0,62672.0,0.28110604]
[1728827866261,0.0014,62673.0,62672.0,0.26492912]
[1728827867153,0.0014,62673.0,62672.0,0.50192398]
[1728827867658,0.0014,62673.0,62672.0,0.50192682]
[1728827868162,0.0014,62673.0,62672.0,0.50192713]
[1728827868668,0.0014,62673.0,62672.0,0.48196565]
[1728827868859,0.0014,62673.0,62672.0,0.50192708]
[1728827869051,0.0014,62673.0,62672.0,0.50193189]
[1728827869251,0.0014,62673.0,62672.0,0.52189332]
[1728827869454,0.0014,62673.0,62672.0,0.50193189]